fUST/lending_fUST_20250615
["ID","MTS","AMOUNT","RATE_DAILY","PERIOD"]
[365951622,1749995446137,-213.32089821,0.00020742,2]
[365951623,1749995446147,-962.36,0.00020812,3]
[365951624,1749995446156,-845.25843836,0.00020812,3]
[365951625,1749995446166,-460.0,0.00020821,2]
[365951627,1749995446175,-460.0,0.00020821,2]
[365951628,1749995446185,-460.0,0.00020821,2]
[365951629,1749995446194,-616.03,0.00020821,2]
[365951630,1749995446203,-533.52,0.00020821,2]
[365951631,1749995446213,-460.0,0.00020821,2]
[365951632,1749995446222,-1280.45,0.00020821,2]
[365951633,1749995446231,-1109.87,0.00020821,2]
[365951634,1749995446241,-1759.83,0.00020821,2]
[365951635,1749995446251,-460.0,0.00020821,2]
[365951636,1749995446260,-1313.22,0.00020821,2]
[365951637,1749995446269,-518.98,0.00020821,2]
[365951638,1749995446279,-460.0,0.00020821,2]
[365951639,1749995446289,-460.0,0.00020821,2]
[365951640,1749995446298,-460.0,0.00020821,2]
[365951641,1749995446307,-412.77,0.00020821,2]
[365951642,1749995446317,-480.86,0.00020821,2]
[365951643,1749995446326,-601.69,0.00020821,2]
[365951644,1749995446338,-460.0,0.00020821,2]
[365951645,1749995446347,-1156.25,0.00020821,2]
[365951646,1749995446357,-460.0,0.00020821,2]
[365951647,1749995446367,-686.16,0.00020821,2]
[365951648,1749995446376,-460.0,0.00020821,2]
[365951649,1749995446386,-1232.79,0.00020821,2]
[365951650,1749995446493,-237.34272,0.00020821,2]
[365951651,1749995446503,-1069.63,0.00020821,2]
[365951652,1749995446512,-420.0,0.00020899,2]
[365951653,1749995446522,-989.38874201,0.00020934,4]
[365951654,1749995446532,-1415.0,0.00021,2]
[365951655,1749995446542,-460.0,0.00021095,2]
[365951656,1749995446552,-460.0,0.00021095,2]
[365951657,1749995446562,-460.0,0.00021095,2]
[365951658,1749995446572,-616.03,0.00021095,2]
[365951659,1749995446581,-533.52,0.00021095,2]
[365951660,1749995446595,-460.0,0.00021095,2]
[365951661,1749995446606,-1280.45,0.00021095,2]
[365951662,1749995446617,-1109.87,0.00021095,2]
[365951663,1749995446627,-1759.83,0.00021095,2]
[365951664,1749995446637,-460.0,0.00021095,2]
[365951665,1749995446648,-1313.22,0.00021095,2]
[365951666,1749995446659,-518.98,0.00021095,2]
[365951667,1749995446669,-467.87,0.00021095,2]
[365951668,1749995446679,-460.0,0.00021095,2]
[365951669,1749995446689,-460.0,0.00021095,2]
[365951670,1749995446700,-480.86,0.00021095,2]
[365951671,1749995446710,-601.69,0.00021095,2]
[365951672,1749995446720,-460.0,0.00021095,2]
[365951673,1749995446730,-1156.25,0.00021095,2]
[365951674,1749995446740,-460.0,0.00021095,2]
[365951675,1749995446749,-686.16,0.00021095,2]
[365951677,1749995446759,-460.0,0.00021095,2]
[365951678,1749995446768,-1232.79,0.00021095,2]
[365951679,1749995446778,-1069.63,0.00021095,2]
[365951680,1749995446788,-989.38874201,0.00021141,4]
[365951681,1749995446798,-700.0,0.00021164,2]
[365951682,1749995446808,-1140.0,0.000212,4]
[365951683,1749995446818,-151.0,0.000213,4]
[365951684,1749995446827,-500.0,0.00021325,2]
[365951685,1749995446839,-500.0,0.00021329,2]
[365951686,1749995446849,-989.38874201,0.00021348,5]
[365951687,1749995446858,-590.16,0.00021369,2]
[365951688,1749995446868,-460.0,0.00021369,2]
[365951689,1749995446877,-460.0,0.00021369,2]
[365951690,1749995446886,-616.03,0.00021369,2]
[365951691,1749995446895,-533.52,0.00021369,2]
[365951692,1749995446905,-460.0,0.00021369,2]
[365951693,1749995446914,-1280.45,0.00021369,2]
[365951694,1749995446924,-1109.87,0.00021369,2]
[365951695,1749995446933,-1759.83,0.00021369,2]
[365951696,1749995446943,-460.0,0.00021369,2]
[365951697,1749995446952,-1313.22,0.00021369,2]
[365951698,1749995446962,-518.98,0.00021369,2]
[365951699,1749995446971,-460.0,0.00021369,2]
[365951701,1749995446980,-248.22,0.00021369,2]
[365951703,1749995446990,-480.86,0.00021369,2]
[365951705,1749995446999,-601.69,0.00021369,2]
[365951707,1749995447008,-460.0,0.00021369,2]
[365951709,1749995447017,-1156.25,0.00021369,2]
[365951711,1749995447027,-460.0,0.00021369,2]
[365951713,1749995447036,-686.16,0.00021369,2]
[365951715,1749995447046,-460.0,0.00021369,2]
[365951716,1749995447056,-1232.79,0.00021369,2]
[365951718,1749995447066,-1069.63,0.00021369,2]
[365951720,1749995447075,-168.0,0.00021393,2]
[365951722,1749995447085,-500.0,0.000214,2]
[365951724,1749995447095,-501.1678591,0.00021462,2]
[365951726,1749995447104,-500.0,0.00021462,2]
[365951728,1749995447114,-500.0,0.00021464,2]
[365951729,1749995447123,-500.0,0.00021464,2]
[365951730,1749995447132,-500.0,0.00021464,2]
[365951731,1749995447141,-502.16626817,0.00021492,2]
[365951732,1749995447150,-931.07067,0.00021526,2]
[365951733,1749995447160,-5000.0,0.00021527,2]
[365951734,1749995447169,-207.4,0.00021527,2]
[365951735,1749995447178,-500.0,0.00021527,2]
[365951736,1749995447187,-500.0,0.00021527,2]
[365951737,1749995447196,-500.0,0.00021527,2]
[365951738,1749995447205,-500.0,0.00021527,2]
[365951740,1749995447214,-500.0,0.00021527,2]
[365951742,1749995447224,-500.0,0.00021527,2]
[365951744,1749995447233,-500.0,0.00021527,2]
[365951746,1749995447243,-500.0,0.00021527,2]
[365951748,1749995447252,-500.0,0.00021527,2]
[365951750,1749995447262,-500.0,0.00021527,2]
[365951752,1749995447271,-500.0,0.00021527,2]
[365951754,1749995447280,-500.0,0.00021527,2]
[365951756,1749995447289,-500.0,0.00021527,2]
[365951758,1749995447299,-500.0,0.00021527,2]
[365951760,1749995447308,-500.0,0.00021527,2]
[365951762,1749995447317,-500.0,0.00021527,2]
[365951764,1749995447327,-500.0,0.00021527,2]
[365951766,1749995447337,-500.0,0.00021527,2]
[365951768,1749995447347,-500.0,0.00021527,2]
[365951769,1749995447356,-500.0,0.00021527,2]
[365951772,1749995447365,-500.0,0.00021527,2]
[365951774,1749995447375,-500.0,0.00021527,2]
[365951776,1749995447385,-500.0,0.00021527,2]
[365951778,1749995447395,-500.0,0.00021527,2]
[365951780,1749995447404,-500.0,0.00021527,2]
[365951782,1749995447413,-500.0,0.00021527,2]
[365951784,1749995447423,-500.0,0.00021527,2]
[365951786,1749995447433,-500.0,0.00021527,2]
[365951788,1749995447442,-500.0,0.00021527,2]
[365951790,1749995447451,-500.0,0.00021527,2]
[365951792,1749995447460,-989.38874201,0.00021555,5]
[365951794,1749995447470,-168.0,0.00021606,2]
[365951796,1749995447479,-587.0,0.00021622,2]
[365951798,1749995447489,-460.0,0.00021643,2]
[365951800,1749995447498,-460.0,0.00021643,2]
[365951802,1749995447507,-616.03,0.00021643,2]
[365951804,1749995447517,-533.52,0.00021643,2]
[365951806,1749995447527,-460.0,0.00021643,2]
[365951808,1749995447537,-1280.45,0.00021643,2]
[365951810,1749995447547,-1109.87,0.00021643,2]
[365951812,1749995447556,-1759.83,0.00021643,2]
[365951814,1749995447565,-460.0,0.00021643,2]
[365951816,1749995447574,-1313.22,0.00021643,2]
[365951818,1749995447584,-518.98,0.00021643,2]
[365951820,1749995447594,-460.0,0.00021643,2]
[365951822,1749995447603,-480.86,0.00021643,2]
[365951824,1749995447612,-601.69,0.00021643,2]
[365951826,1749995447622,-266.4,0.00021643,2]
[365951828,1749995447631,-1156.25,0.00021643,2]
[365951830,1749995447640,-460.0,0.00021643,2]
[365951832,1749995447649,-686.16,0.00021643,2]
[365951834,1749995447658,-460.0,0.00021643,2]
[365951835,1749995447667,-1232.79,0.00021643,2]
[365951836,1749995447676,-151.0,0.000217,3]
[365951837,1749995447686,-3005.96,0.00021709,2]
[365951838,1749995447696,-989.38874201,0.00021762,5]
[365951839,1749995447710,-1463.42,0.000218,2]
[365951840,1749995447720,-168.0,0.00021804,2]
[365951841,1749995447730,-168.0,0.00021868,2]
[365951842,1749995447739,-500.0,0.00021877,2]
[365951843,1749995447750,-160.0,0.00021906,2]
[365951844,1749995447759,-460.0,0.00021917,2]
[365951845,1749995447768,-460.0,0.00021917,2]
[365951846,1749995447779,-616.03,0.00021917,2]
[365951847,1749995447788,-533.52,0.00021917,2]
[365951848,1749995447798,-460.0,0.00021917,2]
[365951849,1749995447807,-1280.45,0.00021917,2]
[365951850,1749995447817,-1109.87,0.00021917,2]
[365951851,1749995447826,-1759.83,0.00021917,2]
[365951852,1749995447837,-460.0,0.00021917,2]
[365951853,1749995447846,-1313.22,0.00021917,2]
[365951854,1749995447855,-518.98,0.00021917,2]
[365951855,1749995447865,-460.0,0.00021917,2]
[365951856,1749995447874,-500.0,0.00021917,2]
[365951857,1749995447884,-480.86,0.00021917,2]
[365951858,1749995447893,-601.69,0.00021917,2]
[365951859,1749995447903,-500.0,0.00021917,2]
[365951860,1749995447913,-1156.25,0.00021917,2]
[365951861,1749995447922,-312.33,0.00021917,2]
[365951862,1749995447931,-686.16,0.00021917,2]
[365951863,1749995447941,-460.0,0.00021917,2]
[365951864,1749995447950,-1232.79,0.00021917,2]
[365951865,1749995447960,-500.0,0.00021918,2]
[365951866,1749995447969,-500.0,0.00021918,2]
[365951867,1749995447979,-500.0,0.00021918,2]
[365951868,1749995447989,-500.0,0.00021918,2]
[365951869,1749995447998,-500.0,0.00021918,2]
[365951870,1749995448008,-500.0,0.00021918,2]
[365951871,1749995448017,-500.0,0.00021918,2]
[365951872,1749995448027,-500.0,0.00021918,2]
[365951873,1749995448036,-500.0,0.00021918,2]
[365951874,1749995448046,-500.0,0.00021918,2]
[365951875,1749995448056,-500.0,0.00021918,2]
[365951876,1749995448065,-500.0,0.00021918,2]
[365951877,1749995448074,-500.0,0.00021918,2]
[365951878,1749995448084,-500.0,0.00021918,2]
[365951879,1749995448095,-500.0,0.00021918,2]
[365951880,1749995448104,-500.0,0.00021918,2]
[365951881,1749995448114,-415.03988424,0.00021918,2]
[365951882,1749995448123,-500.0,0.00021918,2]
[365951883,1749995448132,-500.0,0.00021918,2]
[365951884,1749995448142,-500.0,0.00021918,2]
[365951885,1749995448152,-500.0,0.00021918,2]
[365951886,1749995448162,-500.0,0.00021918,2]
[365951887,1749995448171,-500.0,0.00021918,2]
[365951888,1749995448180,-500.0,0.00021918,2]
[365951889,1749995448189,-500.0,0.00021918,2]
[365951890,1749995448199,-500.0,0.00021918,2]
[365951891,1749995448208,-500.0,0.00021918,2]
[365951892,1749995448218,-500.0,0.00021918,2]
[365951893,1749995448227,-500.0,0.00021918,2]
[365951894,1749995448237,-500.0,0.00021918,2]
[365951895,1749995448246,-500.0,0.00021918,2]
[365951896,1749995448256,-500.0,0.00021918,2]
[365951897,1749995448265,-591.50398842,0.00021918,2]
[365951898,1749995448275,-989.38874201,0.00021969,6]
[365951899,1749995448285,-263.18105773,0.00021973,2]
[365951900,1749995448294,-258.77533907,0.00021973,2]
[365951901,1749995448303,-500.0,0.00021973,2]
[365951902,1749995448313,-500.0,0.00021973,2]
[365951903,1749995448322,-501.02704274,0.00021973,2]
[365951904,1749995448331,-425.99276817,0.00021981,2]
[365951905,1749995448342,-186.0,0.00022,2]
[365951906,1749995448352,-172.0,0.00022,2]
[365951907,1749995448363,-542.77,0.00022,7]
[365951908,1749995448373,-40399.53,0.00022,2]
[365951909,1749995448383,-160.0,0.00022,2]
[365951910,1749995448393,-89977.71,0.00022,7]
[365951911,1749995448403,-12535.62630729,0.00022,7]
[365951912,1749995448412,-845.25843836,0.00022,7]
[365951913,1749995448422,-500.0,0.0002201,2]
[365951914,1749995448432,-1000.9670821,0.00022012,2]
[365951915,1749995448442,-1000.0,0.00022012,2]
[365951916,1749995448451,-1000.0,0.00022012,2]
[365951917,1749995448461,-5000.0,0.00022075,2]
[365951918,1749995448471,-989.38874201,0.00022176,6]
[365951919,1749995448481,-460.0,0.00022191,2]
[365951921,1749995448490,-460.0,0.00022191,2]
[365951923,1749995448499,-616.03,0.00022191,2]
[365951925,1749995448509,-533.52,0.00022191,2]
[365951927,1749995448519,-460.0,0.00022191,2]
[365951929,1749995448529,-1280.45,0.00022191,2]
[365951931,1749995448539,-1109.87,0.00022191,2]
[365951933,1749995448549,-1759.83,0.00022191,2]
[365951935,1749995448558,-460.0,0.00022191,2]
[365951937,1749995448568,-1313.22,0.00022191,2]
[365951939,1749995448578,-518.98,0.00022191,2]
[365951941,1749995448588,-460.0,0.00022191,2]
[365951943,1749995448598,-480.86,0.00022191,2]
[365951945,1749995448608,-601.69,0.00022191,2]
[365951947,1749995448618,-1156.25,0.00022191,2]
[365951949,1749995448627,-686.16,0.00022191,2]
[365951951,1749995448636,-460.0,0.00022191,2]
[365951953,1749995448645,-1232.79,0.00022191,2]
[365951955,1749995448655,-151.0,0.000222,6]
[365951956,1749995448664,-199.76697731,0.000222,69]
[365951958,1749995448674,-700.0,0.0002226,2]
[365951960,1749995448684,-989.38874201,0.00022383,7]
[365951962,1749995448694,-460.0,0.00022465,2]
[365951963,1749995448706,-460.0,0.00022465,2]
[365951965,1749995448716,-616.03,0.00022465,2]
[365951967,1749995448725,-533.52,0.00022465,2]
[365951969,1749995448735,-460.0,0.00022465,2]
[365951971,1749995448744,-1280.45,0.00022465,2]
[365951973,1749995448753,-1109.87,0.00022465,2]
[365951975,1749995448763,-1759.83,0.00022465,2]
[365951977,1749995448772,-460.0,0.00022465,2]
[365951979,1749995448781,-1313.22,0.00022465,2]
[365951980,1749995448790,-518.98,0.00022465,2]
[365951982,1749995448800,-460.0,0.00022465,2]
[365951984,1749995448810,-480.86,0.00022465,2]
[365951986,1749995448820,-601.69,0.00022465,2]
[365951988,1749995448830,-500.0,0.00022465,2]
[365951989,1749995448842,-1156.25,0.00022465,2]
[365951990,1749995448851,-686.16,0.00022465,2]
[365951991,1749995448861,-460.0,0.00022465,2]
[365951992,1749995448870,-1232.79,0.00022465,2]
[365952004,1749995448981,-1000.0,0.00022521,2]
[365952006,1749995448991,-250.0,0.00022541,2]
[365952007,1749995449001,-1013.82596414,0.0002256,2]
[365952008,1749995449011,-1500.0,0.0002256,2]
[365952009,1749995449021,-989.38874201,0.0002259,7]
[365952010,1749995449032,-151.0,0.000226,7]
[365952011,1749995449041,-308.990011,0.00022603,2]
[365952012,1749995449051,-153.0,0.00022605,2]
[365952013,1749995449062,-153.0,0.00022605,2]
[365952014,1749995449071,-153.0,0.00022605,2]
[365952015,1749995449081,-153.0,0.00022605,2]
[365952017,1749995449092,-153.0,0.00022605,2]
[365952019,1749995449102,-153.0,0.00022605,2]
[365952022,1749995449111,-153.0,0.00022605,2]
[365952024,1749995449120,-153.0,0.00022605,2]
[365952026,1749995449130,-153.0,0.00022605,2]
[365952028,1749995449139,-153.0,0.00022605,2]
[365952030,1749995449149,-153.0,0.00022605,2]
[365952032,1749995449159,-153.0,0.00022605,2]
[365952034,1749995449168,-153.0,0.00022605,2]
[365952036,1749995449178,-153.0,0.00022605,2]
[365952037,1749995449188,-153.0,0.00022605,2]
[365952039,1749995449197,-153.0,0.00022605,2]
[365952040,1749995449207,-153.0,0.00022605,2]
[365952041,1749995449217,-153.0,0.00022605,2]
[365952042,1749995449226,-153.0,0.00022605,2]
[365952043,1749995449236,-153.0,0.00022605,2]
[365952044,1749995449245,-153.0,0.00022605,2]
[365952045,1749995449255,-153.0,0.00022605,2]
[365952046,1749995449265,-153.0,0.00022605,2]
[365952047,1749995449274,-153.0,0.00022605,2]
[365952048,1749995449284,-153.0,0.00022605,2]
[365952049,1749995449293,-153.0,0.00022605,2]
[365952050,1749995449302,-153.0,0.00022605,2]
[365952051,1749995449312,-153.0,0.00022605,2]
[365952052,1749995449321,-153.0,0.00022605,2]
[365952053,1749995449331,-153.0,0.00022605,2]
[365952054,1749995449342,-153.0,0.00022605,2]
[365952055,1749995449352,-153.0,0.00022605,2]
[365952056,1749995449361,-153.0,0.00022605,2]
[365952057,1749995449371,-5000.0,0.00022623,2]
[365952058,1749995449380,-4508.94,0.00022696,2]
[365952059,1749995449390,-460.0,0.00022739,2]
[365952060,1749995449400,-460.0,0.00022739,2]
[365952061,1749995449410,-616.03,0.00022739,2]
[365952062,1749995449420,-533.52,0.00022739,2]
[365952063,1749995449430,-460.0,0.00022739,2]
[365952064,1749995449440,-1280.45,0.00022739,2]
[365952065,1749995449450,-1109.87,0.00022739,2]
[365952066,1749995449460,-1759.83,0.00022739,2]
[365952067,1749995449470,-460.0,0.00022739,2]
[365952068,1749995449490,-1313.22,0.00022739,2]
[365952069,1749995449501,-518.98,0.00022739,2]
[365952070,1749995449511,-460.0,0.00022739,2]
[365952071,1749995449521,-480.86,0.00022739,2]
[365952072,1749995449531,-601.69,0.00022739,2]
[365952073,1749995449541,-1156.25,0.00022739,2]
[365952074,1749995449551,-686.16,0.00022739,2]
[365952075,1749995449561,-460.0,0.00022739,2]
[365952076,1749995449571,-1232.79,0.00022739,2]
[365952077,1749995449581,-587.0,0.00022776,2]
[365952078,1749995449593,-989.38874201,0.00022797,7]
[365952079,1749995449604,-437.03504658,0.00022892,2]
[365952080,1749995449614,-215.0738,0.00022896,2]
[365952081,1749995449624,-3968.97,0.00022898,2]
[365952082,1749995449635,-425.99276817,0.00022958,2]
[365952083,1749995449644,-500.0,0.00022992,2]
[365952084,1749995449654,-5000.0,0.00022996,2]
[365952085,1749995449664,-6000.0,0.00022996,2]
[365952086,1749995449675,-175.021273,0.00023,7]
[365952087,1749995449685,-1463.42,0.00023,7]
[365952088,1749995449695,-160.0,0.00023,3]
[365952089,1749995449709,-229.86375354,0.00023,3]
[365952090,1749995449718,-989.38874201,0.00023003,8]
[365952091,1749995449728,-460.0,0.00023013,2]
[365952092,1749995449737,-460.0,0.00023013,2]
[365952093,1749995449747,-616.03,0.00023013,2]
[365952094,1749995449757,-533.52,0.00023013,2]
[365952095,1749995449767,-460.0,0.00023013,2]
[365952096,1749995449778,-1280.45,0.00023013,2]
[365952097,1749995449788,-1109.87,0.00023013,2]
[365952098,1749995449798,-1759.83,0.00023013,2]
[365952099,1749995449808,-460.0,0.00023013,2]
[365952100,1749995449817,-1313.22,0.00023013,2]
[365952101,1749995449826,-518.98,0.00023013,2]
[365952102,1749995449837,-460.0,0.00023013,2]
[365952103,1749995449847,-480.86,0.00023013,2]
[365952104,1749995449857,-601.69,0.00023013,2]
[365952105,1749995449866,-1156.25,0.00023013,2]
[365952106,1749995449876,-686.16,0.00023013,2]
[365952107,1749995449886,-460.0,0.00023013,2]
[365952108,1749995449896,-1232.79,0.00023013,2]
[365952109,1749995449906,-7000.0,0.00023024,2]
[365952110,1749995449916,-500.0,0.00023031,2]
[365952111,1749995449926,-500.0,0.00023073,2]
[365952112,1749995449936,-502.94394354,0.00023073,2]
[365952113,1749995449946,-546.17308086,0.00023073,2]
[365952114,1749995449955,-600.0,0.00023073,2]
[365952115,1749995449965,-500.0,0.00023073,2]
[365952116,1749995449975,-500.0,0.00023085,2]
[365952117,1749995449984,-6000.0,0.00023098,2]
[365952118,1749995449995,-89977.71,0.000231,7]
[365952119,1749995450004,-151.0,0.000231,9]
[365952120,1749995450014,-2000.0,0.00023107,2]
[365952121,1749995450024,-437.03504658,0.00023122,2]
[365952122,1749995450033,-6000.0,0.00023126,2]
[365952123,1749995450043,-500.0,0.00023144,2]
[365952124,1749995450053,-500.0,0.00023149,2]
[365952125,1749995450063,-500.0,0.00023171,2]
[365952126,1749995450072,-5000.0,0.00023171,2]
[365952127,1749995450081,-7000.0,0.00023186,2]
[365952128,1749995450092,-40399.53,0.000232,2]
[365952129,1749995450102,-989.38874201,0.0002321,8]
[365952130,1749995450111,-8000.0,0.00023224,2]
[365952131,1749995450121,-500.0,0.00023227,2]
[365952132,1749995450130,-500.0,0.0002323,2]
[365952133,1749995450140,-500.0,0.00023244,2]
[365952134,1749995450150,-500.0,0.00023253,2]
[365952135,1749995450160,-7620.39078176,0.00023265,2]
[365952136,1749995450169,-500.0,0.00023266,2]
[365952137,1749995450179,-164.73,0.00023276,2]
[365952138,1749995450189,-460.0,0.00023287,2]
[365952139,1749995450198,-321.20872881,0.00023287,2]
[365952140,1749995450208,-616.03,0.00023287,2]
[365952141,1749995450217,-533.52,0.00023287,2]
[365952142,1749995450227,-460.0,0.00023287,2]
[365952143,1749995450236,-1280.45,0.00023287,2]
[365952144,1749995450246,-1109.87,0.00023287,2]
[365952145,1749995450256,-1759.83,0.00023287,2]
[365952146,1749995450266,-460.0,0.00023287,2]
[365952147,1749995450276,-1313.22,0.00023287,2]
[365952148,1749995450286,-518.98,0.00023287,2]
[365952149,1749995450296,-460.0,0.00023287,2]
[365952150,1749995450307,-480.86,0.00023287,2]
[365952151,1749995450317,-601.69,0.00023287,2]
[365952152,1749995450326,-1156.25,0.00023287,2]
[365952153,1749995450336,-686.16,0.00023287,2]
[365952154,1749995450347,-460.0,0.00023287,2]
[365952155,1749995450357,-1232.79,0.00023287,2]
[365952156,1749995450367,-500.0,0.0002329,2]
[365952157,1749995450377,-500.0,0.00023298,2]
[365952158,1749995450386,-542.77,0.000233,7]
[365952159,1749995450396,-500.0,0.00023313,2]
[365952160,1749995450406,-700.0,0.00023356,2]
[365952161,1749995450416,-989.38874201,0.00023417,9]
[365952162,1749995450426,-500.0,0.00023439,2]
[365952163,1749995450436,-500.0,0.00023465,2]
[365952164,1749995450446,-500.0,0.00023467,2]
[365952165,1749995450456,-500.0,0.0002347,2]
[365952166,1749995450466,-437.03504658,0.00023471,2]
[365952167,1749995450477,-500.0,0.00023473,2]
[365952168,1749995450488,-500.0,0.00023473,2]
[365952169,1749995450497,-263.77751492,0.00023473,2]
[365952170,1749995450507,-260.36814119,0.00023473,2]
[365952171,1749995450517,-502.36320382,0.00023473,2]
[365952172,1749995450527,-500.0,0.00023497,2]
[365952173,1749995450537,-200.0,0.00023499,2]
[365952174,1749995450546,-280.71795802,0.00023499,2]
[365952175,1749995450556,-500.0,0.00023499,2]
[365952176,1749995450565,-11733.91815171,0.000235,2]
[365952177,1749995450575,-21395.69821833,0.000235,2]
[365952178,1749995450584,-713830.41513635,0.000235,2]
[365952179,1749995451814,-401.99410861,0.00019178,2]
[365952180,1749995451824,-460.0,0.00019178,2]
[365952181,1749995451834,-500.0,0.00019178,2]
[365952182,1749995451847,-460.0,0.00019178,2]
[365952183,1749995451856,-500.0,0.00019178,2]
[365952184,1749995451867,-500.0,0.00019178,2]
[365952185,1749995451876,-500.0,0.00019178,2]
[365952186,1749995451886,-543.65,0.00019178,2]
[365952187,1749995451895,-460.0,0.00019178,2]
[365952188,1749995451904,-460.0,0.00019178,2]
[365952189,1749995451914,-230.85600987,0.00019178,2]
[365952190,1749995453765,300.0,0.00019177,2]
[365952191,1749995462231,300.0,0.00019176,2]
[365952192,1749995468490,790.76424936,0.00025012,60]
[365952193,1749995472553,273.0,0.00025012,120]
[365952194,1749995482989,2179.41744302,0.00019177,2]
[365952196,1749995507905,393.0,0.00025012,120]
[365952197,1749995522927,300.0,0.00019176,2]
[365952205,1749995746149,3067.45300864,0.00018,2]
[365952208,1749995777154,226.84863573,0.00018,2]
[365952210,1749995795868,-183.2082641,0.00018061,2]
[365952211,1749995827583,-300.0,0.00018061,2]
[365952212,1749995829887,-660.2898861,0.00018061,2]
[365952213,1749995831851,-700.406299,0.00018326,2]
[365952214,1749995831875,-80.14570871,0.00018564,2]
[365952215,1749995839026,-179.2757524,0.00018378,2]
[365952217,1749995870752,24900.0,0.00017898,2]
[365952218,1749995878297,-285.27418338,0.00018378,2]
[365952219,1749995882649,-188.23937203,0.00018378,2]
[365952220,1749995892526,-377.1471811,0.00018378,2]
[365952221,1749995912831,-157.57546241,0.00018364,2]
[365952222,1749996006854,-183.66,0.00018209,2]
[365952224,1749996028197,894.5654049,0.00018,2]
[365952226,1749996137025,-816.34,0.00018209,2]
[365952227,1749996137047,-157.9690465,0.00018457,2]
[365952228,1749996137070,-163.27,0.00018557,2]
[365952229,1749996137092,-300.0,0.00018562,2]
[365952230,1749996137115,-300.0,0.00018563,2]
[365952231,1749996137138,-300.0,0.00018563,2]
[365952232,1749996137161,-300.0,0.00018563,2]
[365952233,1749996137183,-1200.0,0.00018563,2]
[365952234,1749996137205,-300.0,0.00018563,2]
[365952235,1749996137227,-1641.96438932,0.00018564,2]
[365952236,1749996137249,-572.95598846,0.00018564,2]
[365952237,1749996137271,-500.0,0.00018564,2]
[365952238,1749996137293,-514.21665762,0.00018564,2]
[365952239,1749996137315,-500.0,0.00018564,2]
[365952240,1749996137339,-500.0,0.00018564,2]
[365952241,1749996137363,-500.0,0.00018564,2]
[365952242,1749996137387,-514.032816,0.00018564,2]
[365952243,1749996137410,-174.34083005,0.00018564,2]
[365952244,1749996137435,-500.0,0.00018564,2]
[365952245,1749996137459,-500.0,0.00018564,2]
[365952246,1749996137482,-500.0,0.00018564,2]
[365952247,1749996137507,-500.0,0.00018564,2]
[365952248,1749996137531,-500.0,0.00018564,2]
[365952249,1749996137555,-610.84889749,0.00018564,2]
[365952250,1749996137579,-500.0,0.00018564,2]
[365952251,1749996137602,-387.16047389,0.00018564,2]
[365952252,1749996137624,-170.19542188,0.00018564,2]
[365952253,1749996137647,-8576.70547879,0.00018567,2]
[365952256,1749996159703,1165.71700611,0.00024,120]
[365952264,1749996309673,-320.7242476,0.00018176,2]
[365952266,1749996373138,-222.04152509,0.00018135,2]